Cogmind - Beta 16.1 @@@ ROGUE MODE // 2026.02.23 @ 00:11:23 Player: FAYE Result: Destroyed by CA-2S6(x) with Makeshift Spear Performance ------------- Evolutions (0) 0 Regions Visited (3) 600 Robots Destroyed (6) 30 Value Destroyed (264) 264 Prototype IDs (7) 140 Alien Tech Used (0) 0 Bonus (800) 800 TOTAL SCORE: 1834 Bonus ------- Registered with UFD 300 Met Optimus in HQ 500 Cogmind --------- Core Integrity 0/250 Matter 218/300 Energy 100/100 System Corruption 2% Temperature Warning (315) Movement Treading (140) Location -7/Scraptown Parts ------- > --- POWER (1) -------- (None) > --- PROPULSION (2) --- Overtuned Treads > --- UTILITY (2) ------ Advanced Targeting Computer A0-MCA's Component Scanner > --- WEAPON (2) ------- Barrage Gun Overtuned Barrage Gun > --- INVENTORY (5) ---- Overtuned Titanium Leg VSS Leg VSS Leg Improved Heat Sink Utility Shielding Peak State ------------ > --- POWER ------------ Light Deuterium Engine > --- PROPULSION ------- VSS Leg VSS Leg > --- UTILITY ---------- Advanced Targeting Computer A0-MCA's Component Scanner > --- WEAPON ----------- Barrage Gun Overtuned Barrage Gun > --- INVENTORY -------- Overtuned Treads Overtuned Treads Overtuned Titanium Leg Utility Shielding [Rating: 28] Favorites ----------- Power Ion Engine Engine Ion Engine Propulsion Aluminum Leg Treads Overtuned Treads Leg Aluminum Leg Utility Visual Processing Unit Device Disposable Heat Sink Processor Visual Processing Unit Weapon Gatling Laser Energy Gun Gatling Laser Ballistic Gun Flak Gun Launcher Grenade Launcher Build | -11 -10 -10 -7 ------- Run | Yrd Mat Sub Scr Slots Evolved . | . . . . Power . | . . . . Propulsion . | . . . . Utility . | . . . . Weapon . | . . . . Parts Attached 23 | 4 1 1 17 Power 2 | 1 . . 1 Engine 2 | 1 . . 1 Core . | . . . . Reactor . | . . . . Propulsion 9 | 2 . . 7 Treads 2 | . . . 2 Leg 7 | 2 . . 5 Wheel . | . . . . Hover . | . . . . Flight . | . . . . Utility 4 | . 1 1 2 Device 1 | . . 1 . Storage . | . . . . Processor 3 | . 1 . 2 Hackware . | . . . . Protection . | . . . . Artifact . | . . . . Weapon 8 | 1 . . 7 Energy Gun 3 | . . . 3 Energy Cannon . | . . . . Ballistic Gun 4 | 1 . . 3 Ballistic Cannon . | . . . . Launcher 1 | . . . 1 Special Weapon . | . . . . Impact Weapon . | . . . . Slashing Weapon . | . . . . Piercing Weapon . | . . . . Special Melee Weapon . | . . . . Unidentified Prototypes . | . . . . Parts Lost 4 | . . . 4 Power 2 | . . . 2 Propulsion 2 | . . . 2 Utility . | . . . . Weapon . | . . . . Highest Loss Streak 2 | . . . 2 To Critical Strikes . | . . . . Average Backups 4 | 2 4 5 4 Power . | . . . . Propulsion . | . 1 1 . Utility 1 | . . 1 2 Weapon 2 | 1 2 3 2 Tool/Special . | . . . . Unused Backups 10 | . . . 10 Power . | . . . . Propulsion 3 | . . . 3 Utility 4 | . . . 4 Weapon 3 | . . . 3 Tool/Special . | . . . . Average Slot Usage (%) 91 | . 59 80 98 Engine 13 | . 14 14 13 Leg 27 | . 28 28 26 Device 7 | . . 9 8 Processor 17 | . 2 14 19 Energy Gun 9 | . . . 13 Ballistic Gun 13 | . 14 14 13 Peak Build Rating 28 | 4 6 8 28 Average Rating 15 | 3 4 7 18 On Entrance 4 | . 4 6 8 Avg Prop Armor Cover (%) 10 | . . . 10 Naked Turns . | . . . . Heaviest Build 14 | 7 7 8 14 Greatest Support 38 | 20 20 20 38 Greatest Overweight (x) 1 | . . . 1 Average Overweight (x) . | . . . . Largest Inventory Capacity 5 | 5 5 5 5 Average Capacity 5 | 5 5 5 5 Most Carried 5 | 4 5 5 5 Average Carried 4 | 2 4 5 4 Final Capacity 5 | 5 5 5 5 Final Carried 5 | 3 5 5 5 Class Distribution -------------------- 88% | Mutant 11% | Scavenger-Mutant Dominant Class ---------------- Mutant | -10/Materials Mutant | -10/Subcaves Mutant | -7/Scraptown Resources | -11 -10 -10 -7 ----------- Run | Yrd Mat Sub Scr Matter Collected 544 | 240 . 20 284 Remotely . | . . . . Salvage Created 292 | . . . 292 Parts 14 | . . . 14 Haulers Intercepted . | . . . . Recyclers Shooed . | . . . . Parts Field Recycled . | . . . . Retrieved Matter . | . . . . Parts Self-Destructed . | . . . . Prevented . | . . . . Parts Restored . | . . . . Kills | -11 -10 -10 -7 ------- Run | Yrd Mat Sub Scr Combat Hostiles Destroyed 6 | . . . 6 Guns 5 | . . . 5 AOE 1 | . . . 1 Classes Destroyed 4 | . . . 4 Federalist 1 | . . . 1 Ranger 1 | . . . 1 Guru 1 | . . . 1 Scrapper 3 | . . . 3 Best Kill Streak 3 | . . . 3 Combat Bots Only 3 | . . . 3 Max Kills in Single Turn 1 | . . . 1 Gunslinging . | . . . . Exploded 1 | . . . 1 Melee . | . . . . Uniques/NPCs Destroyed . | . . . . Combat | -11 -10 -10 -7 -------- Run | Yrd Mat Sub Scr Hostile Shots Fired 112 | . . . 112 Missed 31 | . . . 31 Hits 81 | . . . 81 Melee 3 | . . . 3 Projectile 78 | . . . 78 Critical Strikes 7 | . . . 7 Damage Taken 1272 | . . 18 1254 Core 256 | . . . 256 Absorbed by Shields . | . . . . Core Remaining (%) 100 | 100 . . . Volleys Fired 31 | . . . 31 Largest 2 | . . . 2 Hottest 160 | . . . 160 Shots Fired 55 | . . . 55 Gun 52 | . . . 52 Cannon . | . . . . Launcher 3 | . . . 3 Special . | . . . . Kinetic 35 | . . . 35 Thermal 17 | . . . 17 Explosive 3 | . . . 3 Electromagnetic . | . . . . Robot Hit Streak 7 | . . . 7 Robot Miss Streak 8 | . . . 8 Penetration Max . | . . . . Secondary Targets . | . . . . Shots Hit Robots 35 | . . . 35 Core Hits 21 | . . . 21 Critical Kills . | . . . . Critical Parts Destroyed . | . . . . Critical Strikes 1 | . . . 1 Burn 1 | . . . 1 Melee Attacks . | . . . . Impact . | . . . . Slashing . | . . . . Piercing . | . . . . Sneak Attacks . | . . . . Combat Hostiles . | . . . . Follow-up Attacks . | . . . . Damage Inflicted 696 | . . . 696 Guns 579 | . . . 579 Cannons . | . . . . Explosions 117 | . . . 117 Melee . | . . . . Ramming . | . . . . Kinetic 349 | . . . 349 Thermal 230 | . . . 230 Explosive 117 | . . . 117 Electromagnetic . | . . . . Impact . | . . . . Slashing . | . . . . Piercing . | . . . . Highest Corruption 2 | . . . 2 Average Corruption 1 | . . . 1 Corruption Purged . | . . . . Corruption Blocked . | . . . . Effects 4 | . . . 4 Matter Fused 1 | . . . 1 Energy Discharges 1 | . . . 1 Parts Rejected 1 | . . . 1 Weapon Failures 1 | . . . 1 Overload Shots . | . . . . Overflow Damage . | . . . . Projectiles . | . . . . Explosions . | . . . . Melee . | . . . . Knockbacks . | . . . . Impact . | . . . . Kinetic . | . . . . Secondary . | . . . . Self-Inflicted Damage 6 | . . . 6 Shots 1 | . . . 1 Rammed . | . . . . Targets Rammed . | . . . . Kicked . | . . . . Crushed . | . . . . Highest Temperature 492 | . . . 492 Average Temperature 165 | . . . 165 Received Heat Transfer 739 | . . 6 733 Effects 5 | . . . 5 Shutdowns 2 | . . . 2 Interference 2 | . . . 2 Short Circuit 1 | . . . 1 Siege Activations . | . . . . Martial Activations . | . . . . Shielding Activations . | . . . . Robots Disrupted . | . . . . Combat Hostiles . | . . . . Robots Corrupted . | . . . . Combat Hostiles . | . . . . Parts Fried . | . . . . Impact Corruptions . | . . . . Robots Melted . | . . . . Combat Hostiles . | . . . . Parts Melted 2 | . . . 2 Heat Transferred 340 | . . . 340 Parts Sabotaged . | . . . . Parts Stolen . | . . . . Parts Stripped . | . . . . Power Chain Reactions . | . . . . Alert | -11 -10 -10 -7 ------- Run | Yrd Mat Sub Scr Maximum Alert Level . | . . . . Low Security (%) 100 | 100 100 . . Level 1 . | . . . . Level 2 . | . . . . Level 3 . | . . . . Level 4 . | . . . . Level 5 . | . . . . High Security . | . . . . Max Security . | . . . . Peak Influence . | . . . . Initial . | . . . . Average . | . . . . Influence Increases . | . . . . Influence Decreases . | . . . . Squads Dispatched 2 | . 2 . . Investigation 1 | . 1 . . Extermination . | . . . . Reinforcement 1 | . 1 . . Assault . | . . . . Garrison . | . . . . Intercept . | . . . . Searches Triggered . | . . . . Construction Impeded . | . . . . Haulers Reinforced . | . . . . Active Scanning Responses . | . . . . Cargo Convoy Interrupts . | . . . . Stealth | -11 -10 -10 -7 --------- Run | Yrd Mat Sub Scr Distress Signals . | . . . . Communications Jammed . | . . . . Distress Signals . | . . . . Times Spotted 20 | . 1 4 15 Peak Tracking Total 8 | . 1 2 8 Tactical Retreats . | . . . . Traps | -11 -10 -10 -7 ------- Run | Yrd Mat Sub Scr Traps Triggered . | . . . . Indirectly . | . . . . Trap Hack Attempts . | . . . . Triggered . | . . . . Disarmed . | . . . . Reprogrammed . | . . . . Reused . | . . . . Traps Extracted . | . . . . Installed . | . . . . Triggered . | . . . . Machines | -11 -10 -10 -7 ---------- Run | Yrd Mat Sub Scr Machines Disabled . | . . . . Max in Single Turn . | . . . . Machines Repaired . | . . . . Machines Dismantled . | . . . . Machines Sabotaged . | . . . . Overloaded Fab Kills . | . . . . Hacking | -11 -10 -10 -7 --------- Run | Yrd Mat Sub Scr Machines Accessed 4 | . . . 4 Terminals . | . . . . Fabricators . | . . . . Repair Stations . | . . . . Recycling Units . | . . . . Scanalyzers . | . . . . Garrison Access . | . . . . Total Hacks 30 | . . . 30 Successful 30 | . . . 30 Failed . | . . . . Catastrophic . | . . . . Database Lockouts . | . . . . Manual . | . . . . Terminals . | . . . . Fabricators . | . . . . Repair Stations . | . . . . Recycling Units . | . . . . Scanalyzers . | . . . . Garrison Access . | . . . . Terminal Hacks 30 | . . . 30 Record 30 | . . . 30 Fabricator Hacks . | . . . . Repair Station Hacks . | . . . . Recycling Unit Hacks . | . . . . Scanalyzer . | . . . . Garrison Access Hacks . | . . . . Unauthorized Hacks . | . . . . Terminals . | . . . . Fabricators . | . . . . Repair Stations . | . . . . Recycling Units . | . . . . Scanalyzers . | . . . . Garrison Access . | . . . . Data Cores Recovered . | . . . . Used . | . . . . Hacking Detections . | . . . . Full Trace Events . | . . . . Feedback Events . | . . . . Feedback Blocked . | . . . . Robot Schematics Acquired . | . . . . Robots Built . | . . . . Authchips . | . . . . Time . | . . . . Total Robot Build Rating . | . . . . Part Schematics Acquired . | . . . . Parts Built . | . . . . Authchips . | . . . . Time . | . . . . Total Part Build Rating . | . . . . Part Studies Acquired . | . . . . Parts Repaired . | . . . . Time . | . . . . Parts Recycled . | . . . . Recycled Matter . | . . . . Retrieved Matter . | . . . . Retrieved Components . | . . . . Parts Scanalyzed . | . . . . Part Schematics Acquired . | . . . . Parts Damaged . | . . . . Bothacking | -11 -10 -10 -7 ------------ Run | Yrd Mat Sub Scr Used RIF Installer . | . . . . Robots Hacked . | . . . . Non-combat . | . . . . Combat . | . . . . Robot Hacks Applied . | . . . . Relay Couplers Released . | . . . . Fabnet Peak Effective % . | . . . . Robots Rewired . | . . . . Allies Hacked . | . . . . Hacks Repelled . | . . . . Allies | -11 -10 -10 -7 -------- Run | Yrd Mat Sub Scr Total Allies . | . . . . Largest Group . | . . . . Highest-Rated Group . | . . . . Highest-Rated Ally . | . . . . Total Orders . | . . . . Ally Attacks . | . . . . Total Damage . | . . . . Kills . | . . . . Allies Corrupted . | . . . . Allies Melted 8 | . . . 8 Intel | -11 -10 -10 -7 ------- Run | Yrd Mat Sub Scr Active Infowar (turns) 1411 | . 40 236 1135 Optics 1411 | . 40 236 1135 Robot Analysis Total . | . . . . Derelict Logs Recovered 1 | . . 1 . Drone Launches . | . . . . Drone Recoveries . | . . . . Exploration | -11 -10 -10 -7 ------------- Run | Yrd Mat Sub Scr Turns Passed 1909 | 59 200 236 1414 Spaces Moved 1456 | 49 164 165 1078 Core 18 | 14 . . 4 Treads 6 | . . . 6 Legs 1432 | 35 164 165 1068 Wheels . | . . . . Hover . | . . . . Flight . | . . . . Fastest Speed 50 | 50 120 120 90 Average Speed 117 | 100 120 120 117 Slowest Speed 140 | 120 120 120 140 Overloaded Moves . | . . . . Propulsion Burnouts . | . . . . Robots Hopped . | . . . . Potential Cave-ins . | . . . . Cave-ins Triggered . | . . . . Exploration Rate (%) 32 | 3 34 12 79 Regions Visited 3 Branch Regions 2 Pre-discovered Areas . | . . . . Known Exits Taken . | . . . . Unknown Exits Taken 3 | 1 1 1 . Scrap Searched 3 | . . . 3 Spaces Dug . | . . . . Terrain Destroyed 5 | . . . 5 Melee . | . . . . Projectile . | . . . . AOE 5 | . . . 5 Terrain Rammed . | . . . . Walls Destroyed . | . . . . Machines Disabled . | . . . . Actions | -11 -10 -10 -7 --------- Run | Yrd Mat Sub Scr Total 1603 | 59 166 202 1176 Wait 36 | . . 34 2 Move 1453 | 48 163 164 1078 Hop . | . . . . Pick Up 30 | 7 2 . 21 Fast Attach 6 | . 1 1 4 Attach 9 | 4 . . 5 Detach . | . . . . Swap 11 | . . . 11 Drop 22 | . . . 22 Fire 31 | . . . 31 Melee . | . . . . Ram . | . . . . Kick . | . . . . Crush . | . . . . Escape Stasis . | . . . . Rewire 5 | . . 3 2 Trap . | . . . . Miscellaneous . | . . . . Route ------- -11/Scrapyard -10/Materials (discovered 2 exits: [*Min] / [*Sub]) -10/Subcaves (discovered 2 exits: [*Mat] / *Scr) -7/Scraptown (discovered 1 exit: [*Fac]) History --------- Turn | Location | Event 2 | -11/Scrapyard | Met Revision 17 18 | -11/Scrapyard | Discovered new exit (range 15) 60 | -11/Scrapyard | Entered Materials 61 | -10/Materials | Met a group of wandering Federalists 215 | -10/Materials | Discovered new exit (range 13) 256 | -10/Materials | Discovered new exit (range 5) 260 | -10/Materials | Entered Subcaves 261 | -10/Subcaves | Continued accompanying wandering Federalists (4) 261 | -10/Subcaves | Approached by a straggling Scientist 265 | -10/Subcaves | Discovered new exit (range 6) 301 | -10/Subcaves | Shifting Twisted Machinery released Sub. Power Source 304 | -10/Subcaves | Shifting Twisted Machinery released Sub. Laser 317 | -10/Subcaves | Build established: Mutant 332 | -10/Subcaves | Learned Materials terminal intel 474 | -10/Subcaves | Wandering Federalist uncovered a shortcut to Scraptown 490 | -10/Subcaves | Ambushed by Subdwellers from Twisted Machinery 496 | -10/Subcaves | Entered Scraptown 635 | -7/Scraptown | Visited Scrapoid Research Area 674 | -7/Scraptown | Visited Cave Peace 836 | -7/Scraptown | Discovered new exit (range 5) 933 | -7/Scraptown | Visited Symbiants 957 | -7/Scraptown | Visited Shadow of the Wyrm 995 | -7/Scraptown | Visited UFD Registry 995 | -7/Scraptown | Registered with UFD as "Flexibucket" 1240 | -7/Scraptown | Visited Scrapoid Pod Storage 1285 | -7/Scraptown | Visited Research Penetration Think Tank 1318 | -7/Scraptown | Visited A0-MCA Data Center 1325 | -7/Scraptown | Given an A- rating by A0-MCA 1328 | -7/Scraptown | Found A0-MCA's Component Scanner 1366 | -7/Scraptown | Visited Junk Repository 1416 | -7/Scraptown | Met Optimus 1416 | -7/Scraptown | Accepted into 0bPrime 1482 | -7/Scraptown | Visited Scrap Suit Storage 1522 | -7/Scraptown | Visited Junk Repository 1595 | -7/Scraptown | Civil war broke out across Scraptown 1786 | -7/Scraptown | Lost 4 allies 1802 | -7/Scraptown | Core integrity fell below 50% 1846 | -7/Scraptown | Optimus destroyed in the chaos of civil war 1890 | -7/Scraptown | Core integrity fell below 20% 1910 | -7/Scraptown | Destroyed by CA-2S6(x) with Makeshift Spear Last Messages --------------- 01835_ Acquired Ovr. Treads. 01840_ System corrupted: Matter fused (-8). 01844_ Acquired 38 matter. 01846_ ANNOUNCEMENT: The traitor Optimus has been dealt with. Put down any remaining collaborators. 01848_ Acquired Imp. Heat Sink. 01867_ Component scanned: Siege Cannon [Triborg]. 01875_ Q9-PN2(j) heat damages Mak. Salvage Targeting Computer. 01885_ S3-91K(g): "Triborg not so powerful after all." 01887_ AT-J45(j) destroyed. 01890_ JM-YGD(j) destroyed. 01892_ 9G-L2I(j) heat spikes uncontrollably. 01892_ Critical hit (Burn: +50). 01898_ S1-2DW(j) cannibalizes Broken Ovr. Titanium Leg to repair Ovr. Titanium Leg. 01903_ Lgt. Deuterium Engine destroyed. 01904_ S1-2DW(j) heat short circuits Mak. Salvage Targeting Computer. 01907_ Critical hit (Burn: +50). 01910_ Ovr. Treads destroyed. 01910_ Critical hit (Burn: +50). Map ----- +----------------------------------------------------+ | #???????#" | | #???????#" | | #???????#" | | #???????#" | | ####### #???#####" | | ??????# #???#"""" """"""""""""""""""" | | ??????# #???#"""" """"""""""""""""""" | | ??????# #???#""""!===%[""###### ######### | | ??????# #???#"""" =!*%""# ##?? | | ??????# #???#"""" ![""# X"#?? | | ??????# ###?#""" ! ""# "" "" ##?? | | ??????# ""#"#"""" *%= ""# "" "" X"#?? | | ??????# """"#"""" ! ""# " " #### | | ??????# ===[= ""#######" "" "" | | ??????# =%* =###?????#"[= "" "" | | ??????# !!=%#########=%%[ ""# " " #### | | ??????# ==%!% !%= !!* ""# "" "" ""#?? | | ??????# !=!! *= ""# "" "" ##?? | | ?????# [* ""# X"#?? | | ????# % [! "# ##?? | | ## ####! %= TT[ % !%=%= ""###### ######### | | %[ !![TT% = = = """""""""""""""""" | | !![ *%! ! =% ! """""""""" """"" | | = !=% [%! j !%!*!%!%= | | %*=! !j! g x = =%=*=[ | | = =!%! g @ ![!* %! | | #""""# == = | | % #????#" *%[ | | !! #????#"""" " """" """"" " " "" | | ######### ###!% "###????####### ########### ###### | | ??????? ??# #???????????? ??????? ???? | | ????? ? " #??????????#" "????" ?? | | ???? "! #??????????#" "#??" "#? | | ??# #% #??????????#" ! "#??" """"" "#? | | ??# """"" ?" #??????????#""""""" #?#" ????? "#? | | ???? """"? # #??????????##########?#"???????"#? | | ??? """"? # #??????????????????????????????"#? | | ??# ???????# #????????????????????????????????? | | ??? ???????# #????????????????????????????????? | | ????????????# #????????????????????????????????? | | ????????????# #????????????????????????????????? | | ????######### #????????????????????????????????? | | ????""""""""" #????############################# | | ???"""" """"" #????# ##"""##"""##"""##"" | | ?#"""" " "" #????# """"""" ## ""##|""##" "##"" | | #????# """"""" | | ##"" "" "" " #????# """"""" | | ???"""""""""" #????# """"""" *%= = | | ?????"""""""" #????# """"""" ##"""##"""##""|##"| | | ??????####### #????# ##"""##"""##"""##"" | +----------------------------------------------------+ Best States ------------- Heat Dissipation 25 Coolant Potential 50 Energy Generation 14 Energy Capacity 250 Matter Stores 300 Matter Capacity 300 Sight Range 18 Terrain Scan Density 10 Evasion (%) 57 Targeting Accuracy 8 Recoil Reduction 2 Item Schematics ----------------- None Robot Schematics ------------------ None Fabricated ------------ Nothing Repaired ---------- Nothing Studied --------- None Alien Tech Used ----------------- None Achievements -------------- Civilization 2243 I Have A Map? Librarian Link The Feds Sprinter Strength In Numbers You Again Challenges ------------ None Game ------ Seed ReflectivePlatingStripper Manual? 0 Play Time 00:32:08 Cumulative 4.8 hours Start 2026.02.22 @ 23:38:52 End 2026.02.23 @ 00:11:23 Sessions 1 Manual Loads 0 Difficulty Rogue Special Mode None Game No. 11 Rogue 11 Adventurer 0 Explorer 0 Win Type - Total 0 Types 0/0/0/0/0/0/0/0/0/0 Lore% 6 Gallery% 11 Achievement% 9 Wizard Run 0 Options --------- Layout 0 ASCII 0 Keyboard 0 Movement Mouse Keybinds 0 Fullscreen 2 Font 24/Smallcaps Map View 76x50 Zoom Use 0% Tactical HUD 1 Map Filters NONE Filters NONE Steam 1 RUN: 89a76ffb-7563-4226-8509-f9a1e843f459